fUST/lending_fUST_20240917
["ID","MTS","AMOUNT","RATE_DAILY","PERIOD"]
[338401076,1726585838451,-3636.07911959,0.00019101,2]
[338401077,1726585838461,-155.402123,0.00019171,2]
[338401078,1726585838470,-169.240388,0.00019171,2]
[338401079,1726585838480,-183.865088,0.00019171,2]
[338401080,1726585838489,-169.240387,0.00019171,2]
[338401081,1726585838498,-211.870379,0.00019171,2]
[338401082,1726585838508,-500.0,0.00019176,2]
[338401083,1726585838517,-163.702936,0.00019178,2]
[338401085,1726585838526,-760.850041,0.00019178,2]
[338401086,1726585838535,-609.25,0.000192,2]
[338401088,1726585838545,-1000.0,0.0001927,2]
[338401089,1726585838554,-177.663,0.00019303,2]
[338401090,1726585838564,-13555.82,0.000194,10]
[338401091,1726585838573,-211.870379,0.00019411,2]
[338401092,1726585838583,-155.402123,0.00019491,2]
[338401093,1726585838593,-1000.4,0.000195,2]
[338401094,1726585838602,-160.0,0.00019546,5]
[338401095,1726585838613,-169.240387,0.0001965,2]
[338401096,1726585838626,-211.870379,0.0001965,2]
[338401097,1726585838636,-151.0,0.00019726,2]
[338401098,1726585838646,-153.0,0.00019752,2]
[338401099,1726585838656,-153.0,0.00019752,2]
[338401100,1726585838668,-448.3382894,0.00019752,2]
[338401101,1726585838678,-587.0,0.00019766,2]
[338401102,1726585838687,-500.0,0.00019791,2]
[338401103,1726585838697,-155.402123,0.0001981,2]
[338401104,1726585838706,-203.41875347,0.00019845,2]
[338401105,1726585838715,-760.850041,0.00019863,2]
[338401106,1726585838725,-154.11553568,0.00019867,2]
[338401107,1726585838736,-64288.045954,0.0001988,3]
[338401108,1726585838746,-211.870379,0.0001989,2]
[338401109,1726585838756,-48664.7213368,0.0001989,3]
[338401111,1726585838767,-59849.41147213,0.0001989,3]
[338401112,1726585838779,-2885.389925,0.0001989,3]
[338401114,1726585838791,-1553.24455687,0.0001989,3]
[338401116,1726585838801,-1000.0,0.000199,2]
[338401117,1726585838810,-1447.29451878,0.000199,10]
[338401122,1726585838848,-683.78425921,0.00017535,2]
[338401124,1726585838857,-683.78425921,0.00017535,2]
[338401125,1726585838868,-683.78425921,0.00017535,2]
[338401127,1726585838878,-5918.13531982,0.000199,10]
[338401146,1726585839163,1333.78,0.00024,60]
[338401180,1726585840312,-683.78425921,0.00017535,2]
[338401181,1726585840321,-683.78425921,0.00017535,2]
[338401182,1726585840330,-683.78425921,0.00017535,2]
[338401183,1726585840339,-683.78425921,0.00017535,2]
[338401184,1726585840348,-683.78425921,0.00017535,2]
[338401185,1726585840358,-683.78425921,0.00017535,2]
[338401186,1726585840368,-683.78425921,0.00017535,2]
[338401187,1726585840378,-683.78425921,0.00017535,2]
[338401188,1726585840388,-186.7481404,0.00017535,2]
[338401189,1726585840459,500.0,0.00024,60]
[338401190,1726585842179,500.0,0.00024,60]
[338401197,1726585842534,896.74,0.00024,60]
[338401198,1726585843260,6700.83,0.00024,60]
[338401200,1726585843966,-497.03611881,0.00017535,2]
[338401201,1726585843976,-683.78425921,0.00017535,2]
[338401203,1726585843986,-683.78425921,0.00017535,2]
[338401205,1726585843996,-683.78425921,0.00017535,2]
[338401207,1726585844006,-683.78425921,0.00017535,2]
[338401208,1726585844016,-683.78425921,0.00017535,2]
[338401210,1726585844026,-683.78425921,0.00017535,2]
[338401212,1726585844036,-683.78425921,0.00017535,2]
[338401214,1726585844046,-683.78425921,0.00017535,2]
[338401216,1726585844056,-683.78425921,0.00017535,2]
[338401218,1726585844066,-683.78425921,0.00017535,2]
[338401220,1726585844075,-683.78425921,0.00017535,2]
[338401221,1726585844084,-683.78425921,0.00017535,2]
[338401223,1726585844094,-683.78425921,0.00017535,2]
[338401225,1726585844104,-683.78425921,0.00017535,2]
[338401227,1726585844114,-683.78425921,0.00017535,2]
[338401229,1726585844127,-683.78425921,0.00017535,2]
[338401232,1726585844136,-683.78425921,0.00017535,2]
[338401233,1726585844146,-683.78425921,0.00017535,2]
[338401235,1726585844155,-683.78425921,0.00017535,2]
[338401236,1726585844166,-683.78425921,0.00017535,2]
[338401238,1726585844175,-683.78425921,0.00017535,2]
[338401240,1726585844185,-683.78425921,0.00017535,2]
[338401242,1726585844195,-683.78425921,0.00017535,2]
[338401244,1726585844205,-683.78425921,0.00017535,2]
[338401245,1726585844214,-683.78425921,0.00017535,2]
[338401247,1726585844224,-683.78425921,0.00017535,2]
[338401249,1726585844233,-683.78425921,0.00017535,2]
[338401251,1726585844244,-683.78425921,0.00017535,2]
[338401252,1726585844254,-683.78425921,0.00017535,2]
[338401253,1726585844263,-683.78425921,0.00017535,2]
[338401254,1726585844273,-683.78425921,0.00017535,2]
[338401255,1726585844282,-683.78425921,0.00017535,2]
[338401256,1726585844291,-683.78425921,0.00017535,2]
[338401257,1726585844301,-683.78425921,0.00017535,2]
[338401258,1726585844310,-683.78425921,0.00017535,2]
[338401259,1726585844320,-683.78425921,0.00017535,2]
[338401260,1726585844329,-683.78425921,0.00017535,2]
[338401261,1726585844338,-683.78425921,0.00017535,2]
[338401263,1726585844348,-683.78425921,0.00017535,2]
[338401265,1726585844358,-683.78425921,0.00017535,2]
[338401266,1726585844371,-683.78425921,0.00017535,2]
[338401268,1726585844380,-683.78425921,0.00017535,2]
[338401270,1726585844390,-683.78425921,0.00017535,2]
[338401272,1726585844399,-683.78425921,0.00017535,2]
[338401274,1726585844408,-683.78425921,0.00017535,2]
[338401276,1726585844418,-6190.3901614,0.000199,10]
[338401277,1726585844427,-13555.82,0.000199,10]
[338401278,1726585844437,-8845.1643751,0.000199,10]
[338401279,1726585845105,1855.68,0.00024,60]
[338401287,1726585845463,681.74,0.00024,60]
[338401313,1726585845828,-548.33,0.000191,2]
[338401314,1726585845838,-4710.6556239,0.000199,10]
[338401315,1726585845848,-151.0,0.00019945,2]
[338401316,1726585845857,-269.1,0.0001995,3]
[338401317,1726585845866,-128576.091908,0.0001996,3]
[338401318,1726585845878,-195.851156,0.0001997,2]
[338401319,1726585845888,-195.851156,0.0001997,2]
[338401320,1726585845897,-151.0,0.0001997,2]
[338401321,1726585845907,-2331.84208814,0.0001997,3]
[338401361,1726585846780,500.0,0.00024,60]
[338401363,1726585848123,500.0,0.00024,60]
[338401365,1726585849924,554.17,0.00024,60]
[338401367,1726585851506,500.0,0.00024,60]
[338401368,1726585851780,500.0,0.00024,60]
[338401370,1726585852923,974.76,0.00024,60]
[338401371,1726585854162,500.0,0.00024,60]
[338401373,1726585854628,990.17,0.00024,60]
[338401374,1726585854695,500.0,0.00024,60]
[338401375,1726585854762,500.0,0.00024,60]
[338401376,1726585855530,500.0,0.00024,60]
[338401377,1726585856422,1153.02,0.00024,60]
[338401378,1726585857136,500.0,0.00024,60]
[338401379,1726585857332,1335.6,0.00024,60]
[338401380,1726585857534,226.50577349,0.00024,60]
[338401381,1726585857792,500.0,0.00024,60]
[338401382,1726585858124,11696.5,0.00024,60]
[338401383,1726585858193,500.0,0.00024,60]
[338401384,1726585858468,518.41,0.00024,60]
[338401385,1726585858609,617.10018738,0.00024,60]
[338401386,1726585859019,500.0,0.00024,60]
[338401387,1726585859090,500.0,0.00024,60]
[338401388,1726585859888,500.0,0.00024,60]
[338401389,1726585860523,500.0,0.00024,60]
[338401390,1726585861023,1334.98,0.00024,60]
[338401391,1726585861704,500.0,0.00024,60]
[338401392,1726585862068,500.0,0.00024,60]
[338401393,1726585862310,1659.69,0.00024,60]
[338401394,1726585862720,1370.69,0.00024,60]
[338401395,1726585863476,500.0,0.00024,60]
[338401396,1726585864236,588.09,0.00024,60]
[338401397,1726585864316,500.0,0.00024,60]
[338401398,1726585864396,557.51,0.00024,60]
[338401399,1726585867587,500.0,0.00024,60]
[338401400,1726585869833,500.0,0.00024,60]
[338401401,1726585870396,500.0,0.00024,60]
[338401402,1726585871769,500.25974906,0.00024,60]
[338401403,1726585873030,1221.98,0.00024,60]
[338401404,1726585873820,500.0,0.00024,60]
[338401405,1726585875015,1458.47,0.00024,60]
[338401406,1726585875088,205.03,0.00024,60]
[338401407,1726585875333,500.0,0.00024,60]
[338401408,1726585876349,974.64,0.00024,60]
[338401409,1726585877493,500.0,0.00024,60]
[338401411,1726585878773,500.0,0.00024,60]
[338401414,1726585879018,828.43,0.00024,60]
[338401433,1726585879681,735.83,0.00024,60]
[338401434,1726585881255,685.76,0.00024,60]
[338401435,1726585881991,801.91,0.00024,60]
[338401436,1726585883138,2146.06,0.00024,60]
[338401437,1726585884487,1626.84,0.00024,60]
[338401438,1726585884559,500.0,0.00024,60]
[338401439,1726585885443,500.0,0.00024,60]
[338401440,1726585885662,543.21,0.00024,60]
[338401441,1726585886054,500.0,0.00024,60]
[338401442,1726585886149,500.0,0.00024,60]
[338401443,1726585886217,500.0,0.00024,60]
[338401444,1726585886348,500.0,0.00024,60]
[338401445,1726585886612,535.51670712,0.00024,60]
[338401446,1726585886935,500.0,0.00024,60]
[338401447,1726585887320,500.0,0.00024,60]
[338401448,1726585887892,561.64,0.00024,60]
[338401449,1726585888226,500.0,0.00024,60]
[338401450,1726585888384,500.0,0.00024,60]
[338401451,1726585888458,162.89,0.00024,60]
[338401452,1726585888694,500.0,0.00024,60]
[338401453,1726585888988,500.0,0.00024,60]
[338401454,1726585889287,500.0,0.00024,60]
[338401455,1726585889578,500.0,0.00024,60]
[338401456,1726585889842,516.08758286,0.00024,60]
[338401457,1726585890232,500.0,0.00024,60]
[338401458,1726585890503,500.0,0.00024,60]
[338401459,1726585890569,500.0,0.00024,60]
[338401460,1726585890929,500.0,0.00024,60]
[338401461,1726585891214,500.0,0.00024,60]
[338401462,1726585891609,500.0,0.00024,60]
[338401463,1726585891701,500.0,0.00024,60]
[338401464,1726585891848,500.0,0.00024,60]
[338401465,1726585892052,500.0,0.00024,60]
[338401466,1726585892321,500.0,0.00024,60]
[338401467,1726585892488,1485.01,0.00024,60]
[338401468,1726585892592,500.0,0.00024,60]
[338401469,1726585892881,500.0,0.00024,60]
[338401470,1726585892992,652.76,0.00024,60]
[338401471,1726585893191,500.0,0.00024,60]
[338401472,1726585893267,500.0,0.00024,60]
[338401473,1726585893341,500.0,0.00024,60]
[338401474,1726585893413,288.47876465,0.00024,60]
[338401475,1726585893494,500.0,0.00024,60]
[338401476,1726585893683,500.0,0.00024,60]
[338401477,1726585893756,500.0,0.00024,60]
[338401478,1726585894328,500.0,0.00024,60]
[338401479,1726585894588,500.0,0.00024,60]
[338401480,1726585894918,500.0,0.00024,60]
[338401481,1726585895119,507.45971325,0.00024,60]
[338401482,1726585895205,500.0,0.00024,60]
[338401483,1726585895474,500.0,0.00024,60]
[338401484,1726585896021,500.0,0.00024,60]
[338401485,1726585896998,500.0,0.00024,60]
[338401486,1726585897216,725.97,0.00024,60]
[338401487,1726585899569,500.0,0.00024,60]
[338401488,1726585901367,500.0,0.00024,60]
[338401489,1726585902848,500.0,0.00024,60]
[338401490,1726585903874,500.0,0.00024,60]
[338401491,1726585904368,500.0,0.00024,60]
[338401492,1726585905357,500.0,0.00024,60]
[338401493,1726585905725,1019.0,0.00024,60]
[338401494,1726585906215,1456.02,0.00024,60]
[338401495,1726585906737,500.0,0.00024,60]
[338401496,1726585907265,582.18,0.00024,60]
[338401497,1726585908126,500.0,0.00024,60]
[338401498,1726585908197,3693.18,0.00024,60]
[338401499,1726585910675,500.0,0.00024,60]
[338401500,1726585911868,500.0,0.00024,60]
[338401501,1726585914405,500.0,0.00024,60]
[338401502,1726585915136,500.0,0.00024,60]
[338401503,1726585917706,1480.68,0.00024,60]
[338401504,1726585917918,1095.07,0.00024,60]
[338401505,1726585918007,500.0,0.00024,60]
[338401506,1726585918219,500.0,0.00024,60]
[338401507,1726585918663,610.13,0.00024,60]
[338401508,1726585920767,3099.53,0.00024,60]
[338401509,1726585921390,500.0,0.00024,60]
[338401510,1726585923353,1000.0,0.00024,60]
[338401511,1726585923455,500.0,0.00024,60]
[338401512,1726585924187,500.0,0.00024,60]
[338401513,1726585925538,500.0,0.00024,60]
[338401514,1726585927094,500.0,0.00024,60]
[338401515,1726585928846,724.55,0.00024,60]
[338401516,1726585929678,963.06,0.00024,60]
[338401517,1726585930985,1409.53,0.00024,60]
[338401518,1726585931051,796.49,0.00024,60]
[338401519,1726585931138,1494.19,0.00024,60]
[338401520,1726585931254,6581.82,0.00024,60]
[338401521,1726585933664,500.0,0.00024,60]
[338401522,1726585935453,500.0,0.00024,60]
[338401523,1726585937448,500.0,0.00024,60]
[338401524,1726585938252,635.11,0.00024,60]
[338401525,1726585939952,500.0,0.00024,60]
[338401526,1726585940051,1746.82,0.00024,60]
[338401527,1726585940174,681.94,0.00024,60]
[338401528,1726585940745,500.0,0.00024,60]
[338401529,1726585940806,500.0,0.00024,60]
[338401530,1726585941307,500.0,0.00024,60]
[338401531,1726585942021,500.0,0.00024,60]
[338401532,1726585942448,500.0,0.00024,60]
[338401533,1726585943473,574.2,0.00024,60]
[338401534,1726585944158,500.0,0.00024,60]
[338401535,1726585946110,500.0,0.00024,60]
[338401536,1726585946497,500.0,0.00024,60]
[338401537,1726585947130,519.23,0.00024,60]
[338401538,1726585947301,2052.57,0.00024,60]
[338401539,1726585947799,1500.69,0.00024,60]
[338401540,1726585949205,500.0,0.00024,60]
[338401541,1726585950338,2558.23,0.00024,60]
[338401542,1726585952205,500.0,0.00024,60]
[338401543,1726585952773,200.0,0.00024,60]
[338401544,1726585952851,500.0,0.00024,60]
[338401545,1726585955006,500.0,0.00024,60]
[338401546,1726585955790,568.61,0.00024,60]
[338401547,1726585955864,500.0,0.00024,60]
[338401548,1726585956659,829.46,0.00024,60]
[338401549,1726585956755,1571.56,0.00024,60]
[338401550,1726585956855,584.82,0.00024,60]
[338401551,1726585957018,500.0,0.00024,60]
[338401552,1726585957822,786.31,0.00024,60]
[338401553,1726585958296,1478.56,0.00024,60]
[338401554,1726585958515,500.0,0.00024,60]
[338401555,1726585958578,955.83,0.00024,60]
[338401556,1726585960077,1748.2,0.00024,60]
[338401557,1726585960272,500.0,0.00024,60]
[338401558,1726585960987,626.5225078,0.00024,60]
[338401559,1726585961495,500.0,0.00024,60]
[338401560,1726585962423,3673.53,0.00024,60]
[338401561,1726585963227,500.0,0.00024,60]
[338401562,1726585963682,1869.03,0.00024,60]
[338401563,1726585963867,1639.2,0.00024,60]
[338401564,1726585964130,500.0,0.00024,60]
[338401565,1726585965195,500.0,0.00024,60]
[338401566,1726585965320,500.0,0.00024,60]
[338401567,1726585965694,2341.06,0.00024,60]
[338401568,1726585966762,500.0,0.00024,60]
[338401569,1726585968020,500.0,0.00024,60]
[338401570,1726585968457,500.0,0.00024,60]
[338401571,1726585968712,1222.35,0.00024,60]
[338401572,1726585969193,500.0,0.00024,60]
[338401573,1726585970309,647.68,0.00024,60]
[338401574,1726585970742,998.04,0.00024,60]
[338401575,1726585971042,1736.34,0.00024,60]
[338401576,1726585971808,532.02,0.00024,60]
[338401577,1726585974389,1850.21,0.00024,60]
[338401578,1726585975518,500.0,0.00024,60]
[338401579,1726585975702,500.0,0.00024,60]
[338401580,1726585976937,699.53,0.00024,60]
[338401581,1726585979290,800.91,0.00024,60]
[338401582,1726585979445,500.0,0.00024,60]
[338401583,1726585979529,521.67,0.00024,60]
[338401584,1726585981338,874.94,0.00024,60]
[338401585,1726585982147,500.0,0.00024,60]
[338401586,1726585982379,1656.26,0.00024,60]
[338401587,1726585983385,500.0,0.00024,60]
[338401588,1726585983724,500.0,0.00024,60]
[338401589,1726585985914,500.0,0.00024,60]
[338401590,1726585987241,500.0,0.00024,60]
[338401591,1726585987626,500.0,0.00024,60]
[338401592,1726585987902,990.47,0.00024,60]
[338401593,1726585988129,1033.56,0.00024,60]
[338401594,1726585988199,520.35,0.00024,60]
[338401595,1726585988871,500.8910572,0.00024,60]
[338401596,1726585989806,500.0,0.00024,60]
[338401597,1726585991143,500.0,0.00024,60]
[338401598,1726585991516,500.0,0.00024,60]
[338401599,1726585991885,500.0,0.00024,60]
[338401600,1726585992832,500.0,0.00024,60]
[338401601,1726585992906,937.35,0.00024,60]
[338401602,1726585996264,1293.06,0.00024,60]
[338401603,1726585996347,1224.96,0.00024,60]
[338401604,1726585997428,1000.0,0.00024,60]
[338401605,1726585997520,500.0,0.00024,60]
[338401606,1726585998351,681.21,0.00024,60]
[338401607,1726585999239,500.0,0.00024,60]
[338401608,1726585999508,2738.39,0.00024,60]
[338401609,1726586000868,500.0,0.00024,60]
[338401610,1726586000966,1008.3,0.00024,60]
[338401611,1726586001207,663.08,0.00024,60]
[338401612,1726586001746,695.73,0.00024,60]
[338401613,1726586001822,500.0,0.00024,60]
[338401614,1726586002384,661.81,0.00024,60]
[338401616,1726586003232,500.0,0.00024,60]
[338401617,1726586003299,958.35,0.00024,60]
[338401618,1726586003944,500.0,0.00024,60]
[338401619,1726586007682,1236.21,0.00024,60]
[338401620,1726586009756,696.5,0.00024,60]
[338401621,1726586011169,500.0,0.00024,60]
[338401622,1726586011275,500.0,0.00024,60]
[338401623,1726586012271,500.0,0.00024,60]
[338401624,1726586012596,1126.5,0.00024,60]
[338401625,1726586012962,957.79,0.00024,60]
[338401626,1726586016432,963.71,0.00024,60]
[338401627,1726586017718,500.0,0.00024,60]
[338401628,1726586017888,500.0,0.00024,60]
[338401629,1726586019850,500.0,0.00024,60]
[338401630,1726586021470,500.71849543,0.00024,60]
[338401631,1726586021815,500.0,0.00024,60]
[338401632,1726586022288,500.0,0.00024,60]
[338401633,1726586022561,500.0,0.00024,60]
[338401634,1726586023842,500.35150768,0.00024,60]
[338401635,1726586025477,525.79,0.00024,60]
[338401636,1726586026002,512.27321944,0.00024,60]
[338401637,1726586026817,1626.18,0.00024,60]
[338401638,1726586028056,870.67,0.00024,60]
[338401639,1726586028117,500.0,0.00024,60]
[338401640,1726586028307,500.0,0.00024,60]
[338401641,1726586028409,500.0,0.00024,60]
[338401642,1726586028473,500.0,0.00024,60]
[338401643,1726586028541,500.0,0.00024,60]
[338401644,1726586028718,1315.63,0.00024,60]
[338401645,1726586028834,500.0,0.00024,60]
[338401646,1726586028961,500.0,0.00024,60]
[338401647,1726586029094,500.0,0.00024,60]
[338401648,1726586029378,432.64981515,0.00024,60]
[338401649,1726586029527,500.0,0.00024,60]
[338401650,1726586031194,500.0,0.00024,60]
[338401651,1726586031532,1242.45,0.00024,60]
[338401652,1726586032974,500.0,0.00024,60]
[338401654,1726586036040,2094.85,0.00024,60]
[338401655,1726586036971,1361.88,0.00024,60]
[338401656,1726586037660,500.0,0.00024,60]
[338401657,1726586039913,500.0,0.00024,60]
[338401658,1726586040010,500.0,0.00024,60]
[338401659,1726586040711,500.0,0.00024,60]
[338401660,1726586043168,500.0,0.00024,60]
[338401661,1726586045308,500.0,0.00024,60]
[338401662,1726586048801,500.0,0.00024,60]
[338401663,1726586049306,1727.05,0.00024,60]
[338401664,1726586051280,500.0,0.00024,60]
[338401665,1726586052547,500.0,0.00024,60]
[338401666,1726586052984,2180.96,0.00024,60]
[338401667,1726586053276,500.0,0.00024,60]
[338401668,1726586053371,835.62,0.00024,60]
[338401669,1726586054463,8458.21,0.00024,60]
[338401670,1726586058188,1680.45,0.00024,60]
[338401671,1726586059465,500.0,0.00024,60]
[338401672,1726586059531,527.76,0.00024,60]
[338401673,1726586059715,500.0,0.00024,60]
[338401675,1726586060123,1861.59,0.00024,60]
[338401676,1726586061326,1640.2,0.00024,60]
[338401677,1726586061397,500.0,0.00024,60]
[338401678,1726586061869,500.0,0.00024,60]
[338401679,1726586064278,500.0,0.00024,60]
[338401680,1726586067286,500.0,0.00024,60]
[338401681,1726586067356,1826.84,0.00024,60]
[338401682,1726586067597,560.57,0.00024,60]
[338401683,1726586068738,500.0,0.00024,60]
[338401684,1726586070422,500.0,0.00024,60]
[338401685,1726586071624,2375.6,0.00024,60]
[338401686,1726586073792,2247.37,0.00024,60]
[338401687,1726586075317,500.0,0.00024,60]
[338401688,1726586075385,500.0,0.00024,60]
[338401689,1726586076084,500.0,0.00024,60]
[338401690,1726586077740,1477.65,0.00024,60]
[338401691,1726586080037,500.0,0.00024,60]
[338401692,1726586080893,630.25,0.00024,60]
[338401693,1726586080979,1253.63,0.00024,60]
[338401694,1726586081957,858.98,0.00024,60]
[338401695,1726586082170,2677.27,0.00024,60]
[338401696,1726586082766,500.0,0.00024,60]
[338401697,1726586083387,500.0,0.00024,60]
[338401698,1726586084046,500.0,0.00024,60]
[338401699,1726586084560,580.33,0.00024,60]
[338401700,1726586088499,500.0,0.00024,60]
[338401701,1726586092230,1367.53,0.00024,60]
[338401702,1726586092453,538.24,0.00024,60]
[338401703,1726586092924,500.0,0.00024,60]
[338401704,1726586093232,811.71,0.00024,60]
[338401705,1726586094046,500.0,0.00024,60]
[338401706,1726586094188,500.0,0.00024,60]
[338401707,1726586096824,500.0,0.00024,60]
[338401708,1726586097301,1954.07,0.00024,60]
[338401709,1726586098748,500.0,0.00024,60]
[338401710,1726586098818,500.0,0.00024,60]
[338401711,1726586098892,4319.15,0.00024,60]
[338401712,1726586098957,500.0,0.00024,60]
[338401713,1726586101591,501.72189595,0.00024,60]
[338401714,1726586101914,500.0,0.00024,60]
[338401715,1726586103965,500.0,0.00024,60]
[338401716,1726586104743,7064.8,0.00024,60]
[338401717,1726586104823,500.0,0.00024,60]
[338401718,1726586106090,500.0,0.00024,60]
[338401719,1726586108559,1104.98,0.00024,60]
[338401720,1726586108722,500.0,0.00024,60]
[338401721,1726586110632,2040.49,0.00024,60]
[338401722,1726586111970,500.0,0.00024,60]
[338401723,1726586112766,500.0,0.00024,60]
[338401724,1726586112833,500.0,0.00024,60]
[338401725,1726586112915,500.0,0.00024,60]
[338401726,1726586113197,197.06,0.00024,60]
[338401727,1726586113317,488.68083585,0.00024,60]
[338401728,1726586114971,500.0,0.00024,60]
[338401729,1726586117762,908.04,0.00024,60]
[338401730,1726586118391,573.32492304,0.00024,60]
[338401731,1726586118470,500.0,0.00024,60]
[338401732,1726586120394,1139.08,0.00024,60]
[338401733,1726586120518,557.93,0.00024,60]
[338401734,1726586121159,1418.98,0.00024,60]
[338401735,1726586121621,2056.64,0.00024,60]
[338401736,1726586123563,11209.15,0.00024,60]
[338401737,1726586125227,676.38,0.00024,60]
[338401738,1726586126143,500.0,0.00024,60]
[338401739,1726586126626,501.27253316,0.00024,60]
[338401740,1726586126698,504.52455899,0.00024,60]
[338401741,1726586126926,500.0,0.00024,60]
[338401742,1726586126997,500.0,0.00024,60]
[338401743,1726586128549,2407.46,0.00024,60]
[338401744,1726586129123,500.0,0.00024,60]
[338401745,1726586129222,500.0,0.00024,60]
[338401746,1726586129457,500.0,0.00024,60]
[338401747,1726586129925,694.36,0.00024,60]
[338401748,1726586130353,500.0,0.00024,60]
[338401749,1726586130455,500.0,0.00024,60]
[338401750,1726586130583,1778.36,0.00024,60]
[338401751,1726586131128,500.0,0.00024,60]
[338401752,1726586131580,331.45647824,0.00024,60]
[338401753,1726586132357,500.0,0.00024,60]
[338401754,1726586133224,500.0,0.00024,60]
[338401755,1726586133348,500.0,0.00024,60]
[338401756,1726586134539,500.0,0.00024,60]
[338401757,1726586134618,500.0,0.00024,60]
[338401758,1726586134861,500.0,0.00024,60]
[338401759,1726586135139,500.0,0.00024,60]
[338401760,1726586135211,500.0,0.00024,60]
[338401761,1726586135404,500.0,0.00024,60]
[338401762,1726586135695,500.0,0.00024,60]
[338401763,1726586135966,500.0,0.00024,60]
[338401764,1726586136261,501.92891095,0.00024,60]
[338401765,1726586138527,500.0,0.00024,60]
[338401766,1726586139725,500.0,0.00024,60]
[338401767,1726586140628,807.41,0.00024,60]
[338401768,1726586140806,2804.39,0.00024,60]
[338401769,1726586141046,500.0,0.00024,60]
[338401770,1726586141858,773.27,0.00024,60]
[338401771,1726586142480,1167.64,0.00024,60]
[338401772,1726586142982,500.0,0.00024,60]
[338401773,1726586144596,500.0,0.00024,60]
[338401774,1726586145519,500.0,0.00024,60]